fUST/lending_fUST_20250109
["ID","MTS","AMOUNT","RATE_DAILY","PERIOD"]
[348205879,1736389838909,-500.0,0.00021914,3]
[348205882,1736389838919,-511.72,0.00021915,3]
[348205884,1736389838930,-1353.19,0.00021915,3]
[348205885,1736389838940,-500.0,0.00021917,3]
[348205887,1736389838950,-18253.93821975,0.00022,2]
[348205890,1736389838960,-729.35170856,0.00022,2]
[348205892,1736389838973,-1496.90722167,0.00022,2]
[348205894,1736389838982,-394.0,0.00022016,2]
[348205896,1736389838992,-500.0,0.00022188,3]
[348205898,1736389839001,-511.72,0.00022189,3]
[348205900,1736389839010,-1353.19,0.00022189,3]
[348205902,1736389839019,-500.0,0.00022191,3]
[348205904,1736389839027,-500.0,0.00022462,3]
[348205906,1736389839036,-511.72,0.00022463,3]
[348205908,1736389839045,-1353.19,0.00022463,3]
[348205910,1736389839054,-500.0,0.00022465,3]
[348205912,1736389839064,-159.2456221,0.00022569,2]
[348205914,1736389839073,-151.0,0.0002267,7]
[348205916,1736389839082,-317.01132138,0.00022736,3]
[348205918,1736389839091,-511.72,0.00022737,3]
[348205920,1736389839099,-701.67120693,0.00022737,3]
[348205922,1736389839111,-651.51879307,0.00022737,3]
[348205924,1736389839120,-3465.00757201,0.00022739,3]
[348205926,1736389839129,-500.0,0.00022739,3]
[348205928,1736389839138,-153.07440716,0.00022796,2]
[348205930,1736389839149,-500.0,0.00022799,2]
[348205932,1736389839159,-500.0,0.00022799,2]
[348205934,1736389839168,-500.0,0.00022799,2]
[348205936,1736389839177,-251.69955919,0.00022799,2]
[348205938,1736389839186,-521.05643976,0.00022799,2]
[348205940,1736389839195,-503.97009495,0.00022799,2]
[348205942,1736389839204,-491.48,0.000228,2]
[348205944,1736389839213,-15765.7875189,0.000228,14]
[348206145,1736389846495,-1500.0,0.000208,2]
[348206146,1736389846505,-244.98534475,0.00021092,3]
[348206147,1736389846515,-505.27708861,0.00021092,3]
[348206148,1736389846524,-1294.18627033,0.000228,14]
[348206149,1736389846534,-381.87989091,0.000229,2]
[348206150,1736389846547,-258.0,0.0002293,9]
[348206151,1736389846557,-381.8798907,0.00022934,2]
[348206152,1736389846566,-5022.53925108,0.00022944,2]
[348206153,1736389846576,-381.8798907,0.00022969,2]
[348206154,1736389846586,-4376.88070255,0.00022999,5]
[348206155,1736389846596,-177136.61532069,0.00023,5]
[348206156,1736389846605,-10216.66199482,0.00023,10]
[348206157,1736389846615,-49352.52578471,0.00023,2]
[348206158,1736389846625,-32669.45228244,0.0002301,3]
[348206159,1736389846635,-511.72,0.00023011,3]
[348206160,1736389846645,-1353.19,0.00023011,3]
[348206161,1736389846655,-500.0,0.00023013,3]
[348206162,1736389846665,-151.0,0.000231,6]
[348206163,1736389846674,-160.97,0.000231,31]
[348206164,1736389846684,-4590.13329454,0.00023101,2]
[348206165,1736389846694,-3000.0,0.00023101,2]
[348206166,1736389846703,-25564.35033827,0.00023106,2]
[348206167,1736389846713,-152.280382,0.00023106,7]
[348206168,1736389846722,-174.506445,0.00023106,7]
[348206169,1736389846732,-151.0,0.00023106,7]
[348206170,1736389846741,-151.0,0.00023106,7]
[348206171,1736389846752,-151.0,0.00023106,7]
[348206172,1736389846761,-151.0,0.00023106,7]
[348206173,1736389846771,-152.039968,0.00023106,7]
[348206174,1736389846780,-152.039968,0.00023106,7]
[348206175,1736389846790,-151.0,0.00023106,7]
[348206176,1736389846800,-151.0,0.00023106,7]
[348206177,1736389846809,-504.546796,0.00023106,7]
[348206178,1736389846819,-504.546796,0.00023106,7]
[348206179,1736389846829,-150.2,0.00023106,2]
[348206180,1736389846838,-500.0,0.00023106,2]
[348206181,1736389846847,-150.2,0.00023106,2]
[348206182,1736389846857,-150.2,0.00023106,2]
[348206183,1736389846866,-207.94985808,0.00023106,2]
[348206184,1736389846875,-151.0,0.00023106,7]
[348206185,1736389846885,-151.0,0.00023106,2]
[348206186,1736389846895,-150.2,0.00023106,2]
[348206187,1736389846904,-150.57865465,0.00023106,2]
[348206188,1736389846913,-150.2,0.00023106,2]
[348206189,1736389846923,-500.0,0.00023106,2]
[348206190,1736389846932,-230.675764,0.00023106,7]
[348206191,1736389846942,-150.2,0.00023106,2]
[348206192,1736389846952,-150.2,0.00023106,2]
[348206193,1736389846961,-150.2,0.00023106,2]
[348206194,1736389846971,-150.2,0.00023106,2]
[348206195,1736389846980,-260.256493,0.00023106,7]
[348206196,1736389846989,-260.256493,0.00023106,7]
[348206197,1736389846999,-1809.71857535,0.0002311,7]
[348206198,1736389847009,-1809.71857535,0.0002311,7]
[348206199,1736389847018,-1809.71857535,0.0002311,7]
[348206200,1736389847027,-1809.71857535,0.0002311,7]
[348206201,1736389847036,-1809.71857535,0.0002311,7]
[348206202,1736389847046,-1809.71857535,0.0002311,7]
[348206203,1736389847054,-1809.71857535,0.0002311,7]
[348206204,1736389847063,-1809.71857535,0.0002311,7]
[348206205,1736389847072,-1809.71857535,0.0002311,7]
[348206206,1736389847082,-1809.71857535,0.0002311,7]
[348206207,1736389847092,-1809.71857535,0.0002311,7]
[348206208,1736389847102,-1809.71857535,0.0002311,7]
[348206209,1736389847111,-1809.71857535,0.0002311,7]
[348206210,1736389847121,-1809.71857535,0.0002311,7]
[348206211,1736389847130,-1809.71857535,0.0002311,7]
[348206212,1736389847140,-1809.71857535,0.0002311,7]
[348206213,1736389847150,-1809.71857535,0.0002311,7]
[348206214,1736389847160,-1809.71857535,0.0002311,7]
[348206215,1736389847169,-1809.71857535,0.0002311,7]
[348206216,1736389847179,-1809.71,0.0002311,7]
[348206217,1736389847188,-2714.57786303,0.0002311,7]
[348206218,1736389847198,-2714.57786303,0.0002311,7]
[348206219,1736389847207,-2714.57786303,0.0002311,7]
[348206220,1736389847216,-2714.57786303,0.0002311,7]
[348206221,1736389847226,-2714.57786303,0.0002311,7]
[348206222,1736389847235,-2714.57786303,0.0002311,7]
[348206223,1736389847246,-2714.57786303,0.0002311,7]
[348206224,1736389847256,-2714.57786303,0.0002311,7]
[348206225,1736389847266,-2714.57786303,0.0002311,7]
[348206226,1736389847276,-2714.57786303,0.0002311,7]
[348206227,1736389847285,-2714.57786303,0.0002311,7]
[348206228,1736389847295,-2714.57786303,0.0002311,7]
[348206229,1736389847304,-36.14772041,0.0002311,7]
[348206230,1736389847318,-558.6771946,0.0002311,7]
[348206231,1736389847329,-897.62849113,0.0002311,7]
[348206247,1736390451749,164.252785,0.00013973,2]
[348206248,1736390457634,471.0,0.00025,120]
[348206256,1736390714200,150.0,0.00025,120]
[348206260,1736390746147,-438.0,0.00019077,2]
[348206261,1736390746169,-300.0,0.00019077,2]
[348206262,1736390746189,-211.997,0.00019078,2]
[348206263,1736390746209,-164.98582738,0.00019078,2]
[348206264,1736390746228,-471.77522703,0.00019078,2]
[348206265,1736390749091,-776.68352583,0.00019078,2]
[348206268,1736390826095,-198.75176719,0.00019076,2]
[348206269,1736390826118,-300.0,0.00019077,2]
[348206270,1736390826145,-360.59012139,0.00019078,2]
[348206271,1736390830211,-756.33512228,0.00019078,2]
[348206272,1736390833129,-4854.19448214,0.00019078,2]
[348206273,1736390850093,-1248.62953523,0.00019078,2]
[348206274,1736390851090,-6434.56447307,0.00019078,2]
[348206296,1736391021334,300.0,0.00025,120]
[348206308,1736391032931,-250.0,0.00018285,2]
[348206309,1736391032941,-9190.62454573,0.00018285,2]
[348206310,1736391032954,-9313.71601371,0.00018285,2]
[348206312,1736391032967,-613.315005,0.00018285,2]
[348206316,1736391032979,-5782.34443556,0.00018285,2]
[348206319,1736391032988,-164.98582737,0.00019078,2]
[348206322,1736391032997,-155.58,0.00019175,2]
[348206325,1736391033006,-300.0,0.00019176,2]
[348206327,1736391033016,-500.0,0.00019177,2]
[348206329,1736391033026,-500.0,0.00019177,2]
[348206331,1736391033035,-500.0,0.00019177,2]
[348206333,1736391033044,-500.0,0.00019177,2]
[348206335,1736391033054,-294.74997383,0.00019177,2]
[348206337,1736391033063,-500.0,0.00019177,2]
[348206340,1736391033073,-500.0,0.00019177,2]
[348206342,1736391033082,-500.0,0.00019177,2]
[348206343,1736391033092,-500.0,0.00019177,2]
[348206345,1736391033101,-500.0,0.00019177,2]
[348206347,1736391033110,-500.0,0.00019177,2]
[348206350,1736391033120,-500.0,0.00019177,2]
[348206352,1736391033130,-71.10265658,0.00019177,2]
[348206354,1736391033141,-428.89734342,0.00019177,2]
[348206356,1736391033151,-404.80090276,0.00019177,2]
[348206420,1736391038717,-159.06219106,0.000189,2]
[348206422,1736391038727,-95.19909724,0.00019177,2]
[348206425,1736391038737,-500.0,0.00019177,2]
[348206427,1736391038746,-334.05090795,0.00019177,2]
[348206429,1736391038758,-165.94909205,0.00019177,2]
[348206431,1736391038768,-500.0,0.00019177,2]
[348206433,1736391038777,-500.0,0.00019177,2]
[348206435,1736391038787,-500.0,0.00019177,2]
[348206437,1736391038796,-500.0,0.00019177,2]
[348206439,1736391038806,-500.0,0.00019177,2]
[348206441,1736391038815,-500.0,0.00019177,2]
[348206443,1736391038826,-500.0,0.00019177,2]
[348206445,1736391038835,-500.0,0.00019177,2]
[348206447,1736391038845,-500.0,0.00019177,2]
[348206449,1736391038854,-500.0,0.00019177,2]
[348206451,1736391038863,-500.0,0.00019177,2]
[348206453,1736391038872,-500.0,0.00019177,2]
[348206455,1736391038882,-500.0,0.00019177,2]
[348206457,1736391038895,-500.0,0.00019177,2]
[348206459,1736391038904,-500.0,0.00019177,2]
[348206461,1736391038915,-500.0,0.00019177,2]
[348206463,1736391038924,-500.0,0.00019177,2]
[348206465,1736391038935,-500.0,0.00019177,2]
[348206467,1736391038945,-469.31626909,0.00019177,2]
[348206469,1736391038954,-500.0,0.00019177,2]
[348206471,1736391038963,-500.0,0.00019177,2]
[348206473,1736391038974,-506.95703481,0.00019178,2]
[348206475,1736391038983,-500.0,0.00019178,2]
[348206477,1736391038992,-506.72876644,0.00019178,2]
[348206479,1736391039002,-500.0,0.00019178,2]
[348206481,1736391039010,-500.0,0.00019178,2]
[348206483,1736391039019,-504.7817307,0.00019178,2]
[348206485,1736391039029,-500.0,0.00019178,2]
[348206487,1736391039038,-501.76642101,0.00019178,2]
[348206489,1736391039048,-500.0,0.00019178,2]
[348206491,1736391039058,-500.0,0.00019178,2]
[348206501,1736391039162,-500.0,0.00019178,2]
[348206503,1736391039172,-505.96740793,0.00019178,2]
[348206505,1736391039182,-505.68382017,0.00019178,2]
[348206507,1736391039192,-560.74,0.00019178,2]
[348206509,1736391039201,-510.43491859,0.00019178,2]
[348206511,1736391039211,-500.0,0.00019178,2]
[348206513,1736391039220,-502.25953554,0.00019178,2]
[348206515,1736391039230,-500.0,0.00019178,2]
[348206517,1736391039239,-549.13,0.00019178,2]
[348206519,1736391039248,-506.40083269,0.00019178,2]
[348206521,1736391039258,-500.0,0.00019178,2]
[348206523,1736391039267,-500.0,0.00019178,2]
[348206525,1736391039277,-500.0,0.00019178,2]
[348206527,1736391039286,-500.0,0.00019178,2]
[348206529,1736391039296,-506.52325739,0.00019178,2]
[348206531,1736391039306,-500.0,0.00019178,2]
[348206533,1736391039316,-500.0,0.00019178,2]
[348206535,1736391039326,-505.2838453,0.00019178,2]
[348206537,1736391039336,-500.0,0.00019178,2]
[348206539,1736391039346,-263.25136162,0.00019178,2]
[348206541,1736391039356,-500.0,0.00019178,2]
[348206543,1736391039366,-500.0,0.00019178,2]
[348206545,1736391039375,-500.0,0.00019178,2]
[348206547,1736391039385,-168.63690781,0.00019178,2]
[348206549,1736391039394,-503.08736148,0.00019178,2]
[348206552,1736391039410,-502.41025002,0.00019178,2]
[348206554,1736391039424,-506.39451715,0.00019178,2]
[348206556,1736391039434,-501.55247838,0.00019178,2]
[348206559,1736391039444,-507.00031488,0.00019178,2]
[348206561,1736391039454,-500.0,0.00019178,2]
[348206563,1736391039464,-519.87335655,0.00019178,2]
[348206565,1736391039474,-504.28245465,0.00019178,2]
[348206567,1736391039485,-500.0,0.00019178,2]
[348206569,1736391039495,-502.87424776,0.00019178,2]
[348206571,1736391039506,-500.0,0.00019178,2]
[348206573,1736391039516,-505.89892116,0.00019178,2]
[348206575,1736391039526,-505.75305556,0.00019178,2]
[348206577,1736391039536,-504.77250562,0.00019178,2]
[348206579,1736391039545,-512.77961251,0.00019178,2]
[348206581,1736391039555,-490.0,0.00019178,2]
[348206583,1736391039565,-500.0,0.00019178,2]
[348206585,1736391039576,-500.0,0.00019178,2]
[348206587,1736391039586,-514.65575887,0.00019178,2]
[348206589,1736391039595,-500.0,0.00019178,2]
[348206591,1736391039605,-510.04248808,0.00019178,2]
[348206593,1736391039615,-508.1851689,0.00019178,2]
[348206595,1736391039625,-507.81336089,0.00019178,2]
[348206597,1736391039636,-511.11857554,0.00019178,2]
[348206599,1736391039646,-500.0,0.00019178,2]
[348206601,1736391039657,-503.15905909,0.00019178,2]
[348206604,1736391039670,-512.57856445,0.00019178,2]
[348206606,1736391039680,-407.30567811,0.00019178,2]
[348206608,1736391039689,-500.0,0.00019178,2]
[348206610,1736391039699,-500.0,0.00019178,2]
[348206612,1736391039710,-509.05562239,0.00019178,2]
[348206614,1736391039719,-202.64316647,0.00019178,2]
[348206615,1736391039729,-480.0,0.00019178,2]
[348206618,1736391039739,-440.49003787,0.00019178,2]
[348206620,1736391039749,-500.0,0.00019178,2]
[348206622,1736391039759,-506.66830411,0.00019178,2]
[348206623,1736391039768,-506.17936742,0.00019178,2]
[348206626,1736391039779,-510.27743555,0.00019178,2]
[348206628,1736391039789,-500.0,0.00019178,2]
[348206630,1736391039799,-507.3185185,0.00019178,2]
[348206632,1736391039809,-506.12193934,0.00019178,2]
[348206634,1736391039818,-500.0,0.00019178,2]
[348206636,1736391039828,-511.27728598,0.00019178,2]
[348206638,1736391039837,-505.71246844,0.00019178,2]
[348206640,1736391039847,-504.74925456,0.00019178,2]
[348206641,1736391039858,-500.0,0.00019178,2]
[348206644,1736391039868,-500.0,0.00019178,2]
[348206646,1736391039878,-2547.25,0.00019178,2]
[348206647,1736391039889,-500.0,0.00019178,2]
[348206650,1736391039900,-507.52263408,0.00019178,2]
[348206652,1736391039910,-502.79777683,0.00019178,2]
[348206654,1736391039919,-508.67290321,0.00019178,2]
[348206656,1736391039930,-500.0,0.00019178,2]
[348206658,1736391039939,-253.77795466,0.00019178,2]
[348206660,1736391039948,-506.75003336,0.00019178,2]
[348206662,1736391039959,-500.0,0.00019178,2]
[348206664,1736391039971,-504.55862252,0.00019178,2]
[348206666,1736391039981,-616.21354204,0.00019178,2]
[348206667,1736391039991,-500.0,0.00019178,2]
[348206669,1736391040002,-500.0,0.00019178,2]
[348206671,1736391040011,-508.859701,0.00019178,2]
[348206673,1736391040020,-500.0,0.00019178,2]
[348206675,1736391040029,-505.10993501,0.00019178,2]
[348206677,1736391040039,-502.68072535,0.00019178,2]
[348206679,1736391040049,-510.17144965,0.00019178,2]
[348206681,1736391040058,-504.88275998,0.00019178,2]
[348206683,1736391040068,-504.26198999,0.00019178,2]
[348206685,1736391040079,-510.30300709,0.00019178,2]
[348206687,1736391040088,-500.0,0.00019178,2]
[348206689,1736391040098,-503.28065373,0.00019178,2]
[348206691,1736391040107,-506.12834048,0.00019178,2]
[348206693,1736391040116,-500.0,0.00019178,2]
[348206695,1736391040126,-500.0,0.00019178,2]
[348206697,1736391040135,-500.96807416,0.00019178,2]
[348206699,1736391040145,-500.0,0.00019178,2]
[348206701,1736391040155,-500.0,0.00019178,2]
[348206703,1736391040165,-502.03493083,0.00019178,2]
[348206705,1736391040175,-502.98842144,0.00019178,2]
[348206707,1736391040185,-502.99560617,0.00019178,2]
[348206709,1736391040195,-503.2191235,0.00019178,2]
[348206711,1736391040204,-506.67085114,0.00019178,2]
[348206713,1736391040215,-504.94129188,0.00019178,2]
[348206715,1736391040225,-503.38615043,0.00019178,2]
[348206717,1736391040235,-507.19299734,0.00019178,2]
[348206719,1736391040246,-500.0,0.00019178,2]
[348206721,1736391040256,-503.01129952,0.00019178,2]
[348206723,1736391040266,-506.51690709,0.00019178,2]
[348206726,1736391040276,-493.88631256,0.00019178,2]
[348206728,1736391040286,-500.0,0.00019178,2]
[348206730,1736391040295,-505.28012011,0.00019178,2]
[348206732,1736391040305,-500.0,0.00019178,2]
[348206734,1736391040314,-502.43786878,0.00019178,2]
[348206736,1736391040324,-504.37724292,0.00019178,2]
[348206738,1736391040333,-505.37508921,0.00019178,2]
[348206740,1736391040343,-500.0,0.00019178,2]
[348206742,1736391040354,-507.86805348,0.00019178,2]
[348206744,1736391040364,-500.0,0.00019178,2]
[348206746,1736391040374,-500.0,0.00019178,2]
[348206748,1736391040383,-508.52783963,0.00019178,2]
[348206750,1736391040392,-500.0,0.00019178,2]
[348206752,1736391040401,-500.0,0.00019178,2]
[348206754,1736391040411,-500.0,0.00019178,2]
[348206755,1736391040428,-500.0,0.00019178,2]
[348206757,1736391040439,-500.0,0.00019178,2]
[348206759,1736391040450,-503.1048482,0.00019178,2]
[348206761,1736391040460,-505.71723902,0.00019178,2]
[348206763,1736391040470,-500.0,0.00019178,2]
[348206765,1736391040479,-509.30321835,0.00019178,2]
[348206767,1736391040488,-510.16313121,0.00019178,2]
[348206769,1736391040500,-501.75288488,0.00019178,2]
[348206771,1736391040510,-500.0,0.00019178,2]
[348206774,1736391040520,-500.0,0.00019178,2]
[348206776,1736391040532,-500.0,0.00019178,2]
[348206778,1736391040541,-500.0,0.00019178,2]
[348206780,1736391040551,-502.00445008,0.00019178,2]
[348206782,1736391040561,-504.63207284,0.00019178,2]
[348206784,1736391040571,-500.0,0.00019178,2]
[348206786,1736391040580,-504.87593694,0.00019178,2]
[348206788,1736391040590,-508.45060702,0.00019178,2]
[348206789,1736391040599,-506.63105824,0.00019178,2]
[348206791,1736391040609,-460.13641685,0.00019178,2]
[348206793,1736391040619,-514.72055265,0.00019178,2]
[348206795,1736391040628,-507.62551202,0.00019178,2]
[348206798,1736391040638,-500.75876625,0.00019178,2]
[348206800,1736391040649,-500.0,0.00019178,2]
[348206802,1736391040658,-503.01246929,0.00019178,2]
[348206804,1736391040668,-500.0,0.00019178,2]
[348206806,1736391040678,-500.0,0.00019178,2]
[348206808,1736391040688,-503.06447767,0.00019178,2]
[348206810,1736391040698,-500.0,0.00019178,2]
[348206812,1736391040707,-502.44615366,0.00019178,2]
[348206813,1736391040717,-502.53085735,0.00019178,2]
[348206815,1736391040726,-500.0,0.00019178,2]
[348206817,1736391040736,-500.0,0.00019178,2]
[348206819,1736391040746,-500.0,0.00019178,2]
[348206821,1736391040755,-503.03802099,0.00019178,2]
[348206823,1736391040764,-503.0598415,0.00019178,2]
[348206825,1736391040774,-502.27378867,0.00019178,2]
[348206827,1736391040783,-500.0,0.00019178,2]
[348206829,1736391040793,-503.82853004,0.00019178,2]
[348206831,1736391040804,-504.4371898,0.00019178,2]
[348206834,1736391040814,-500.0,0.00019178,2]
[348206836,1736391040824,-500.0,0.00019178,2]
[348206837,1736391040833,-505.6112576,0.00019178,2]
[348206839,1736391040843,-509.20476433,0.00019178,2]
[348206841,1736391040853,-504.8763171,0.00019178,2]
[348206843,1736391040862,-500.0,0.00019178,2]
[348206845,1736391040872,-502.20222308,0.00019178,2]
[348206847,1736391040882,-514.42920478,0.00019178,2]
[348206849,1736391040896,-506.44725492,0.00019178,2]
[348206851,1736391040905,-163.82,0.00019452,3]
[348206853,1736391040915,-412.88,0.00019452,3]
[348206855,1736391040925,-390.09,0.00019452,3]
[348206857,1736391040935,-154.87,0.00019452,3]
[348206859,1736391040945,-378.34,0.00019452,3]
[348206862,1736391040957,-500.0,0.00019452,3]
[348206863,1736391040967,-438.36569318,0.00019452,3]
[348206865,1736391040977,-500.0,0.00019452,3]
[348206867,1736391040987,-500.0,0.00019452,3]
[348206870,1736391040996,-578.45194556,0.00019452,3]
[348206872,1736391041006,-2547.25,0.00019452,3]
[348206874,1736391041016,-500.0,0.00019452,3]
[348206876,1736391041025,-628.56,0.00019452,3]
[348206878,1736391041035,-500.0,0.00019452,3]
[348206880,1736391041044,-399.73,0.00019452,3]
[348206882,1736391041054,-500.0,0.00019452,3]
[348206884,1736391041063,-500.0,0.00019452,3]
[348206886,1736391041073,-517.47,0.00019452,3]
[348206887,1736391041083,-500.0,0.00019452,3]
[348206889,1736391041093,-500.0,0.00019452,3]
[348206891,1736391041103,-500.0,0.00019452,3]
[348206893,1736391041112,-409.87,0.00019452,3]
[348206896,1736391041122,-565.58,0.00019452,3]
[348206898,1736391041131,-573.2,0.00019452,3]
[348206899,1736391041142,-500.0,0.00019452,3]
[348206902,1736391041152,-417.31,0.00019452,3]
[348206904,1736391041162,-500.0,0.00019452,3]
[348206905,1736391041171,-426.04,0.00019452,3]
[348206908,1736391041181,-500.0,0.00019452,3]
[348206909,1736391041190,-500.0,0.00019452,3]
[348206911,1736391041199,-175.1308203,0.00019452,3]
[348206913,1736391041208,-521.28128484,0.00019452,3]
[348206915,1736391041217,-500.0,0.00019452,3]
[348206917,1736391041227,-160.85,0.00019452,2]
[348206919,1736391041236,-364.1,0.00019452,3]
[348206921,1736391041246,-446.0868515,0.00019452,3]
[348206923,1736391041256,-629.69,0.00019452,3]
[348206925,1736391041267,-500.0,0.00019452,3]
[348206927,1736391041276,-509.71504599,0.00019725,2]
[348206929,1736391041286,-500.0,0.00019725,3]
[348206931,1736391041295,-200.58,0.00019726,3]
[348206933,1736391041304,-500.0,0.00019726,3]
[348206935,1736391041315,-500.0,0.00019726,3]
[348206937,1736391041325,-500.0,0.00019726,3]
[348206939,1736391041335,-2547.25,0.00019726,3]
[348206941,1736391041344,-350.57,0.00019726,3]
[348206943,1736391041354,-404.22,0.00019726,3]
[348206945,1736391041363,-500.0,0.00019726,3]
[348206947,1736391041372,-500.0,0.00019726,3]
[348206949,1736391041382,-495.12,0.00019726,3]
[348206951,1736391041392,-343.69190163,0.000199,2]
[348206953,1736391041402,-502.04917897,0.00019998,3]
[348206955,1736391041411,-500.0,0.00019998,3]
[348206957,1736391041422,-500.0,0.00019998,3]
[348206959,1736391041431,-500.0,0.00019998,3]
[348206971,1736391041526,-500.0,0.00019998,3]
[348206973,1736391041545,-500.0,0.00019999,3]
[348206975,1736391041555,-500.0,0.0002,3]
[348206977,1736391041565,-500.0,0.0002,3]
[348206979,1736391041576,-389.72,0.0002,3]
[348206981,1736391041585,-2547.25,0.0002,3]
[348206983,1736391041594,-277.21,0.0002,3]
[348206985,1736391041604,-500.0,0.0002,3]
[348206987,1736391041614,-343.69190163,0.00020038,2]
[348206989,1736391041623,-343.69190163,0.00020176,2]
[348206991,1736391041633,-500.0,0.00020272,3]
[348206993,1736391041643,-500.0,0.00020272,3]
[348206995,1736391041652,-505.6463153,0.00020272,3]
[348206997,1736391041662,-500.0,0.00020272,3]
[348206999,1736391041673,-500.0,0.00020273,3]
[348207001,1736391041682,-500.0,0.00020273,3]
[348207003,1736391041693,-500.0,0.00020273,3]
[348207005,1736391041702,-2547.25,0.00020273,3]
[348207007,1736391041711,-500.0,0.00020273,3]
[348207009,1736391041720,-343.69190163,0.00020314,2]
[348207011,1736391041730,-343.69190163,0.00020452,2]
[348207013,1736391041739,-503.0872121,0.00020545,3]
[348207015,1736391041749,-500.0,0.00020546,3]
[348207017,1736391041758,-388.1,0.00020546,3]
[348207019,1736391041768,-500.0,0.00020547,3]
[348207021,1736391041778,-542.9,0.00020547,3]
[348207022,1736391041787,-500.0,0.00020547,3]
[348207023,1736391041796,-2547.25,0.00020547,3]
[348207024,1736391041805,-571.14,0.00020547,3]
[348207025,1736391041814,-343.69190163,0.0002059,2]
[348207026,1736391041823,-343.69190163,0.00020728,2]
[348207027,1736391041832,-512.79443002,0.00020819,3]
[348207028,1736391041841,-500.0,0.0002082,3]
[348207029,1736391041850,-500.0,0.00020821,3]
[348207030,1736391041859,-500.0,0.00020821,3]
[348207031,1736391041868,-2547.25,0.00020821,3]
[348207032,1736391041879,-343.69190163,0.00020866,2]
[348207033,1736391041889,-300.0,0.00020898,2]
[348207034,1736391041899,-343.69190163,0.00021003,2]
[348207035,1736391041908,-185.43051227,0.00021091,2]
[348207036,1736391041917,-280.45074959,0.00021091,2]
[348207037,1736391041926,-153.56313788,0.00021092,3]
[348207076,1736391042368,-501.72605163,0.00019178,2]
[348207078,1736391042378,-353.11174419,0.00021092,3]
[348207080,1736391042387,-506.65897455,0.00021092,3]
[348207082,1736391042396,-310.50988913,0.00021092,3]
[348207084,1736391042406,-505.6655861,0.00021092,3]
[348207086,1736391042415,-502.82907496,0.00021092,3]
[348207088,1736391042424,-501.0030001,0.00021092,3]
[348207090,1736391042434,-502.94360653,0.00021092,3]
[348207092,1736391042444,-492.00614781,0.00021092,3]
[348207094,1736391042454,-502.39782405,0.00021092,3]
[348207096,1736391042463,-503.77667629,0.00021092,3]
[348207098,1736391042472,-505.11469662,0.00021092,3]
[348207100,1736391042482,-502.68263693,0.00021092,3]
[348207102,1736391042491,-508.11706264,0.00021092,3]
[348207104,1736391042501,-508.32768716,0.00021092,3]
[348207106,1736391042510,-502.01389641,0.00021092,3]
[348207108,1736391042519,-500.0,0.00021092,3]
[348207110,1736391042529,-503.98866027,0.00021092,3]
[348207112,1736391042538,-506.81254166,0.00021092,3]
[348207113,1736391042547,-503.21313402,0.00021092,3]
[348207115,1736391042556,-209.7765545,0.00021092,3]
[348207117,1736391042565,-500.0,0.00021092,3]
[348207120,1736391042577,-505.46364112,0.00021092,3]
[348207122,1736391042590,-485.37174236,0.00021092,3]
[348207124,1736391042604,-509.90605697,0.00021092,3]
[348207127,1736391042616,-503.02543469,0.00021092,3]
[348207129,1736391042629,-503.0880699,0.00021092,3]
[348207131,1736391042642,-508.11523431,0.00021092,3]
[348207133,1736391042652,-504.78927968,0.00021092,3]
[348207136,1736391042663,-506.33031557,0.00021092,3]
[348207138,1736391042675,-179.63096476,0.00021092,3]
[348207140,1736391042687,-500.1801819,0.00021092,3]
[348207142,1736391042698,-507.16287641,0.00021092,3]